fUSD/lending_fUSD_20250111
["ID","MTS","AMOUNT","RATE_DAILY","PERIOD"]
[348484075,1736568632564,-261.83768097,9.973e-05,2]
[348484077,1736568632575,-1258.55,9.996e-05,2]
[348484079,1736568632587,-553.77,9.996e-05,2]
[348484081,1736568632598,-1424.36,9.996e-05,2]
[348484083,1736568632609,-3437.08,9.996e-05,2]
[348484086,1736568632621,-500.0,9.996e-05,2]
[348484088,1736568632634,-500.0,9.996e-05,2]
[348484090,1736568632645,-775.72,9.996e-05,2]
[348484092,1736568632657,-660.62,9.996e-05,2]
[348484095,1736568632670,-2014.19,9.996e-05,2]
[348484097,1736568632681,-1197.85,9.996e-05,2]
[348484099,1736568632693,-1209.87,9.996e-05,2]
[348484101,1736568632707,-500.0,9.996e-05,2]
[348484104,1736568632720,-1525.55,9.996e-05,2]
[348484106,1736568632731,-2038.01,9.996e-05,2]
[348484108,1736568632742,-839.06,9.996e-05,2]
[348484110,1736568632754,-500.0,9.996e-05,2]
[348484112,1736568632765,-524.96,9.996e-05,2]
[348484115,1736568632777,-1601.27,9.996e-05,2]
[348484118,1736568632788,-500.0,9.996e-05,2]
[348484120,1736568632799,-1195.87,9.996e-05,2]
[348484122,1736568632811,-500.0,9.996e-05,2]
[348484124,1736568632822,-857.41,9.996e-05,2]
[348484127,1736568632833,-500.0,9.996e-05,2]
[348484129,1736568632844,-1062.22,9.996e-05,2]
[348484131,1736568632856,-500.0,9.996e-05,2]
[348484133,1736568632867,-378.938967,9.997e-05,2]
[348484135,1736568632878,-156.453334,9.997e-05,2]
[348484138,1736568632889,-545.54405,9.997e-05,2]
[348484140,1736568632900,-500.0,9.997e-05,2]
[348484142,1736568632912,-500.0,9.997e-05,2]
[348484144,1736568632923,-506.63690694,9.997e-05,2]
[348484147,1736568632935,-500.0,9.997e-05,2]
[348484148,1736568632947,-500.0,9.997e-05,2]
[348484151,1736568632959,-500.0,9.997e-05,2]
[348484153,1736568632971,-500.58955282,9.997e-05,2]
[348484155,1736568632983,-500.0,9.997e-05,2]
[348484157,1736568632994,-500.0,9.997e-05,2]
[348484159,1736568633005,-500.0,9.997e-05,2]
[348484161,1736568633017,-500.0,9.997e-05,2]
[348484163,1736568633028,-511.55568131,9.997e-05,2]
[348484166,1736568633040,-175.41217892,9.997e-05,2]
[348484168,1736568633051,-389.13650598,9.997e-05,2]
[348484170,1736568633064,-500.0,9.997e-05,2]
[348484172,1736568633076,-500.0,9.997e-05,2]
[348484174,1736568633087,-500.0,9.997e-05,2]
[348484176,1736568633099,-502.834064,9.997e-05,2]
[348484179,1736568633111,-500.0,9.997e-05,2]
[348484181,1736568633123,-506.47666395,9.997e-05,2]
[348484183,1736568633135,-449.32016652,9.997e-05,2]
[348484186,1736568633167,-50.67983348,9.997e-05,2]
[348484188,1736568633180,-513.20552964,9.997e-05,2]
[348484190,1736568633192,-121.16888423,9.997e-05,2]
[348484203,1736568638168,-500.0,9.996e-05,2]
[348484204,1736568638178,-152.69873149,9.996e-05,2]
[348484205,1736568638219,-1053.41126851,9.996e-05,2]
[348484206,1736568638230,-378.83111577,9.997e-05,2]
[348484207,1736568638239,-500.0,9.997e-05,2]
[348484208,1736568638249,-521.25988045,9.997e-05,2]
[348484209,1736568638259,-510.44701922,9.997e-05,2]
[348484210,1736568638269,-483.82332966,9.997e-05,2]
[348484211,1736568638279,-508.48030678,9.997e-05,2]
[348484212,1736568638289,-511.33464792,9.997e-05,2]
[348484213,1736568638299,-507.09747017,9.997e-05,2]
[348484214,1736568638308,-635.35805871,9.997e-05,2]
[348484215,1736568638318,-500.0,9.997e-05,2]
[348484216,1736568638328,-500.0,9.997e-05,2]
[348484217,1736568638337,-485.83152875,9.997e-05,2]
[348484218,1736568638646,-8.38803414,9.997e-05,2]
[348484219,1736568638657,-509.18248406,9.997e-05,2]
[348484220,1736568638666,-500.0,9.997e-05,2]
[348484221,1736568638677,-527.91315311,9.997e-05,2]
[348484222,1736568638686,-397.98531187,9.997e-05,2]
[348484327,1736568640102,-102.01468813,9.997e-05,2]
[348484329,1736568640112,-357.34453437,9.997e-05,2]
[348484345,1736568640260,-143.31766601,9.997e-05,2]
[348484347,1736568640271,-428.01377961,9.997e-05,2]
[348484358,1736568640365,-74.75590987,9.997e-05,2]
[348484360,1736568640375,-425.24409013,9.997e-05,2]
[348484362,1736568640387,-74.75590987,9.997e-05,2]
[348484364,1736568640397,-389.77409013,9.997e-05,2]
[348484373,1736568640471,-146.93794332,9.997e-05,2]
[348484375,1736568640483,-520.34359378,9.997e-05,2]
[348484377,1736568640492,-332.7184629,9.997e-05,2]
[348484379,1736568640506,-174.74304195,9.997e-05,2]
[348484381,1736568640517,-500.0,9.997e-05,2]
[348484383,1736568640526,-407.91599976,9.997e-05,2]
[348484666,1736568643284,-500.0,9.996e-05,2]
[348484668,1736568643294,-101.37680723,9.997e-05,2]
[348484670,1736568643304,-500.0,9.997e-05,2]
[348484672,1736568643314,-510.39526504,9.997e-05,2]
[348484674,1736568643323,-500.0,9.997e-05,2]
[348484676,1736568643334,-506.08468909,9.997e-05,2]
[348484678,1736568643343,-517.15185994,9.997e-05,2]
[348484680,1736568643355,-385.96097164,9.997e-05,2]
[348484682,1736568643364,-500.0,9.997e-05,2]
[348484684,1736568643374,-506.15971135,9.997e-05,2]
[348484686,1736568643384,-574.5871677,9.997e-05,2]
[348484688,1736568643393,-634.43011311,9.997e-05,2]
[348484690,1736568643402,-505.15945241,9.997e-05,2]
[348484692,1736568643412,-500.0,9.997e-05,2]
[348484694,1736568643422,-551.59925456,9.997e-05,2]
[348484696,1736568643432,-529.21599568,9.997e-05,2]
[348484698,1736568643442,-503.22,9.997e-05,2]
[348484700,1736568643451,-601.64538204,9.997e-05,2]
[348484702,1736568643461,-503.56816718,9.997e-05,2]
[348484704,1736568643471,-505.53161358,9.997e-05,2]
[348484706,1736568643480,-514.08286489,9.997e-05,2]
[348484708,1736568643489,-490.38175559,9.997e-05,2]
[348484710,1736568643500,-500.79862853,9.997e-05,2]
[348484712,1736568643510,-510.72498144,9.997e-05,2]
[348484714,1736568643519,-213.92200962,9.997e-05,2]
[348484716,1736568643532,-262.47,9.997e-05,2]
[348484719,1736568643544,-30.41814959,9.997e-05,2]
[348484721,1736568643553,-493.38965046,9.997e-05,2]
[348484723,1736568643565,-6.61034954,9.997e-05,2]
[348484725,1736568643576,-493.38965046,9.997e-05,2]
[348484827,1736568646100,-530.69,9.996e-05,2]
[348484828,1736568646110,-10.57739544,9.997e-05,2]
[348484829,1736568646120,-504.04251808,9.997e-05,2]
[348484830,1736568646130,-531.70009737,9.997e-05,2]
[348484831,1736568646140,-509.42236752,9.997e-05,2]
[348484832,1736568646151,-774.91,9.997e-05,2]
[348484833,1736568646161,-312.10762209,9.997e-05,2]
[348484834,1736568646180,-194.73022517,9.997e-05,2]
[348484835,1736568646189,-278.03949837,9.997e-05,2]
[348484836,1736568646201,-221.96050163,9.997e-05,2]
[348484837,1736568646210,-500.7328134,9.997e-05,2]
[348484838,1736568646220,-84.36215497,9.997e-05,2]
[348484839,1736568646248,-420.4709199,9.997e-05,2]
[348484840,1736568646259,-503.175728,9.997e-05,2]
[348484841,1736568646269,-506.87784262,9.997e-05,2]
[348484842,1736568646278,-27.04673348,9.997e-05,2]
[348484843,1736568646308,-480.8657062,9.997e-05,2]
[348484844,1736568646318,-524.85666797,9.997e-05,2]
[348484845,1736568646328,-518.27522195,9.997e-05,2]
[348484846,1736568646338,-520.72253548,9.997e-05,2]
[348484847,1736568646347,-508.63438177,9.997e-05,2]
[348484848,1736568646357,-500.0,9.997e-05,2]
[348484849,1736568646367,-36.64548613,9.997e-05,2]
[348484851,1736568768541,790.95,8.219e-05,2]
[348484852,1736569403255,150.0,8.409e-05,2]
[348484853,1736569536788,4464.05228394,8e-05,2]
[348484854,1736569745427,798.04,8.219e-05,2]
[348484873,1736569832350,-943.89,8.601e-05,2]
[348484874,1736569832360,-1852.42,8.608e-05,2]
[348484875,1736569832370,-3863.58,8.624e-05,2]
[348484876,1736569832381,-251.84914586,8.648e-05,2]
[348484877,1736569832452,-186.47085414,8.648e-05,2]
[348484878,1736569832462,-250.0,8.792e-05,2]
[348484879,1736569832472,-150.0,8.827e-05,2]
[348484880,1736569832482,-373.8747,8.91e-05,2]
[348484881,1736569832492,-150.0,8.943e-05,2]
[348484882,1736569832501,-89.88739211,8.948e-05,2]
[348484883,1736569832513,-60.11260789,8.948e-05,2]
[348484884,1736569832524,-150.0,8.973e-05,2]
[348484885,1736569832533,-510.80257945,9e-05,2]
[348484886,1736569832563,-306.06436294,9e-05,2]
[348484887,1736569832572,-154.67563706,9.07e-05,2]
[348484888,1736569832584,-845.32436294,9.07e-05,2]
[348484889,1736569832594,-166.66,9.082e-05,2]
[348484890,1736569832604,-177.94,9.103e-05,2]
[348484891,1736569832614,-300.0,9.115e-05,2]
[348484892,1736569832624,-702.99,9.116e-05,2]
[348484893,1736569832634,-755.22,9.116e-05,2]
[348484894,1736569832643,-1081.92,9.116e-05,2]
[348484895,1736569832653,-4930.14921236,9.116e-05,2]
[348484896,1736569832673,-638.38636262,9.116e-05,2]
[348484897,1736569832701,-495.07637835,9.116e-05,2]
[348484898,1736569832754,-157.16804667,9.116e-05,2]
[348484899,1736569832764,-299.99,9.15e-05,2]
[348484900,1736569832774,-150.0,9.272e-05,2]
[348484901,1736569832784,-150.0,9.39e-05,2]
[348484902,1736569832794,-500.0,9.425e-05,2]
[348484903,1736569832805,-150.0,9.55e-05,2]
[348484904,1736569832815,-3554.67667579,9.589e-05,2]
[348484905,1736569832834,-304.0,9.589e-05,2]
[348485066,1736569838203,-361.37125032,9.589e-05,2]
[348485067,1736569838314,-654.99755021,9.589e-05,2]
[348485068,1736569838369,-1274.92466572,9.589e-05,2]
[348485069,1736569838428,-465.401043,9.589e-05,2]
[348485070,1736569838441,-1519.07881496,9.589e-05,2]
[348485071,1736569838450,-150.0,9.596e-05,2]
[348485072,1736569838460,-150.0,9.645e-05,2]
[348485073,1736569838471,-167.68,9.681e-05,2]
[348485074,1736569838481,-150.0,9.699e-05,2]
[348485075,1736569838490,-42.51073382,9.7e-05,2]
[348485076,1736569838501,-957.48926618,9.7e-05,2]
[348485077,1736569838511,-300.0,9.7e-05,3]
[348485078,1736569838520,-150.0,9.773e-05,2]
[348485079,1736569838530,-600.0,9.8e-05,3]
[348485080,1736569838539,-1490.12573742,9.896e-05,2]
[348485083,1736569838558,-735.15365519,9.896e-05,2]
[348485111,1736569840254,-673.28091224,9.896e-05,2]
[348485112,1736569840266,-262.520001,9.896e-05,2]
[348485113,1736569840278,-1926.71777441,9.896e-05,2]
[348485114,1736569840289,-65.44911974,9.896e-05,2]
[348485115,1736569840299,-311.5725,9.896e-05,2]
[348485116,1736569840309,-1000.0,9.896e-05,2]
[348485117,1736569840318,-640.215,9.896e-05,2]
[348485118,1736569840327,-3865.4668,9.896e-05,2]
[348485119,1736569840337,-125.57150026,9.896e-05,2]
[348485120,1736569840362,-1362.39004,9.896e-05,2]
[348485121,1736569840473,-1272.5779999,9.896e-05,2]
[348485122,1736569840532,-335.0299999,9.896e-05,2]
[348485123,1736569840544,-500.0,9.896e-05,2]
[348485124,1736569840556,-1404.43045994,9.896e-05,2]
[348485125,1736569840565,-2465.19,9.896e-05,2]
[348485126,1736569840576,-176.752,9.896e-05,2]
[348485127,1736569840586,-5630.5159,9.897e-05,2]
[348485128,1736569840595,-5260.2306,9.897e-05,2]
[348485129,1736569840605,-6396.6102,9.897e-05,2]
[348485130,1736569840615,-900.0,9.9e-05,3]
[348485131,1736569840626,-206.46871637,9.907e-05,2]
[348485132,1736569840636,-500.0,9.995e-05,2]
[348485133,1736569840645,-616.30212369,9.995e-05,2]
[348485134,1736569840656,-571.74787631,9.995e-05,2]
[348485135,1736569840666,-529.41,9.995e-05,2]
[348485136,1736569840675,-1401.39,9.995e-05,2]
[348485137,1736569840686,-3401.75,9.995e-05,2]
[348485138,1736569840696,-500.0,9.995e-05,2]
[348485140,1736569840706,-531.36678343,9.995e-05,2]
[348485142,1736569840715,-946.12,9.995e-05,2]
[348485143,1736569840725,-500.0,9.995e-05,2]
[348485144,1736569840734,-503.20064883,9.995e-05,2]
[348485145,1736569840743,-653.93,9.995e-05,2]
[348485146,1736569840752,-500.0,9.995e-05,2]
[348485148,1736569840762,-1989.88,9.995e-05,2]
[348485150,1736569840772,-2115.54,9.995e-05,2]
[348485152,1736569840781,-743.4,9.995e-05,2]
[348485154,1736569840792,-1191.44,9.995e-05,2]
[348485156,1736569840801,-500.0,9.995e-05,2]
[348485158,1736569840811,-2028.51,9.995e-05,2]
[348485160,1736569840820,-1825.35,9.995e-05,2]
[348485161,1736569840829,-500.0,9.995e-05,2]
[348485162,1736569840838,-1204.46,9.995e-05,2]
[348485163,1736569840848,-596.22,9.995e-05,2]
[348485164,1736569840857,-1506.86,9.995e-05,2]
[348485165,1736569840866,-500.0,9.995e-05,2]
[348485166,1736569840875,-500.0,9.995e-05,2]
[348485167,1736569840883,-1946.43,9.995e-05,2]
[348485168,1736569840892,-830.01,9.995e-05,2]
[348485169,1736569840902,-1179.73,9.995e-05,2]
[348485170,1736569840911,-488.33283326,9.995e-05,2]
[348485171,1736569840920,-523.92,9.995e-05,2]
[348485172,1736569840929,-1590.46,9.995e-05,2]
[348485173,1736569840939,-842.52,9.995e-05,2]
[348485174,1736569840948,-500.0,9.995e-05,2]
[348485175,1736569840958,-500.0,9.995e-05,2]
[348485177,1736569840967,-500.0,9.995e-05,2]
[348485178,1736569840976,-500.0,9.995e-05,2]
[348485180,1736569840985,-500.0,9.995e-05,2]
[348485182,1736569840995,-500.0,9.995e-05,2]
[348485184,1736569841004,-500.0,9.995e-05,2]
[348485186,1736569841013,-384.98780795,9.995e-05,2]
[348485188,1736569841023,-500.0,9.995e-05,2]
[348485190,1736569841033,-636.35540938,9.995e-05,2]
[348485192,1736569841043,-500.0,9.995e-05,2]
[348485194,1736569841052,-500.0,9.995e-05,2]
[348485196,1736569841061,-500.0,9.995e-05,2]
[348485198,1736569841071,-500.0,9.995e-05,2]
[348485200,1736569841080,-500.0,9.995e-05,2]
[348485202,1736569841089,-1054.5,9.995e-05,2]
[348485204,1736569841099,-500.0,9.995e-05,2]
[348485206,1736569841108,-534.39,9.995e-05,2]
[348485208,1736569841117,-500.0,9.995e-05,2]
[348485210,1736569841127,-500.0,9.995e-05,2]
[348485212,1736569841135,-403.98990526,9.995e-05,2]
[348485214,1736569841145,-508.53246165,9.996e-05,2]
[348485216,1736569841155,-506.83679549,9.996e-05,2]
[348485218,1736569841164,-500.92596421,9.996e-05,2]
[348485220,1736569841173,-500.0,9.996e-05,2]
[348485222,1736569841185,-507.09776436,9.996e-05,2]
[348485224,1736569841195,-503.28862049,9.996e-05,2]
[348485226,1736569841205,-503.45182847,9.996e-05,2]
[348485228,1736569841215,-506.41142844,9.996e-05,2]
[348485230,1736569841224,-505.77647964,9.996e-05,2]
[348485232,1736569841233,-503.96700424,9.996e-05,2]
[348485234,1736569841242,-500.0,9.996e-05,2]
[348485235,1736569841252,-501.27939254,9.996e-05,2]
[348485237,1736569841262,-500.0,9.996e-05,2]
[348485239,1736569841271,-518.74707679,9.996e-05,2]
[348485241,1736569841281,-500.5776573,9.996e-05,2]
[348485243,1736569841290,-503.27718743,9.996e-05,2]
[348485245,1736569841299,-504.2704232,9.996e-05,2]
[348485247,1736569841309,-500.0,9.996e-05,2]
[348485249,1736569841319,-509.31430515,9.996e-05,2]
[348485251,1736569841328,-501.99818741,9.996e-05,2]
[348485253,1736569841337,-547.60402789,9.996e-05,2]
[348485255,1736569841347,-500.13847839,9.996e-05,2]
[348485257,1736569841356,-500.0,9.996e-05,2]
[348485259,1736569841366,-500.0,9.996e-05,2]
[348485261,1736569841376,-500.0,9.996e-05,2]
[348485263,1736569841385,-501.58061085,9.996e-05,2]
[348485265,1736569841395,-505.36669697,9.996e-05,2]
[348485267,1736569841404,-500.0,9.996e-05,2]
[348485269,1736569841413,-505.69068597,9.996e-05,2]
[348485271,1736569841423,-506.46771901,9.996e-05,2]
[348485273,1736569841432,-500.57010995,9.996e-05,2]
[348485275,1736569841441,-502.48867777,9.996e-05,2]
[348485277,1736569841451,-500.0,9.996e-05,2]
[348485279,1736569841461,-504.83116084,9.996e-05,2]
[348485281,1736569841470,-500.82075673,9.996e-05,2]
[348485283,1736569841480,-500.0,9.996e-05,2]
[348485285,1736569841489,-602.69,9.996e-05,2]
[348485287,1736569841499,-503.56301205,9.996e-05,2]
[348485289,1736569841508,-502.27294141,9.996e-05,2]
[348485291,1736569841517,-504.03305852,9.996e-05,2]
[348485293,1736569841526,-507.23790212,9.996e-05,2]
[348485295,1736569841536,-604.50554541,9.996e-05,2]
[348485297,1736569841546,-500.0,9.996e-05,2]
[348485299,1736569841556,-500.0,9.996e-05,2]
[348485301,1736569841566,-511.71171152,9.996e-05,2]
[348485303,1736569841576,-500.0,9.996e-05,2]
[348485305,1736569841585,-500.0,9.996e-05,2]
[348485307,1736569841594,-500.0,9.996e-05,2]
[348485309,1736569841604,-506.00120126,9.996e-05,2]
[348485311,1736569841614,-500.0,9.996e-05,2]
[348485313,1736569841623,-500.0,9.996e-05,2]
[348485315,1736569841632,-500.0,9.996e-05,2]
[348485317,1736569841642,-500.0,9.996e-05,2]
[348485319,1736569841652,-532.79,9.996e-05,2]
[348485321,1736569841662,-500.0,9.996e-05,2]
[348485323,1736569841671,-500.0,9.996e-05,2]
[348485325,1736569841681,-500.0,9.996e-05,2]
[348485327,1736569841692,-500.0,9.996e-05,2]
[348485329,1736569841701,-500.0,9.996e-05,2]
[348485331,1736569841710,-500.0,9.996e-05,2]
[348485333,1736569841721,-556.87,9.996e-05,2]
[348485335,1736569841730,-500.0,9.996e-05,2]
[348485337,1736569841739,-500.0,9.996e-05,2]
[348485339,1736569841749,-515.36,9.996e-05,2]
[348485341,1736569841759,-500.0,9.996e-05,2]
[348485343,1736569841769,-539.94852548,9.996e-05,2]
[348485345,1736569841779,-500.0,9.996e-05,2]
[348485347,1736569841788,-500.0,9.996e-05,2]
[348485349,1736569841798,-500.0,9.996e-05,2]
[348485351,1736569841808,-500.0,9.996e-05,2]
[348485353,1736569841818,-500.0,9.996e-05,2]
[348485355,1736569841828,-500.0,9.996e-05,2]
[348485357,1736569841838,-500.0,9.996e-05,2]
[348485360,1736569841848,-500.0,9.996e-05,2]
[348485361,1736569841857,-500.0,9.996e-05,2]
[348485364,1736569841867,-500.0,9.996e-05,2]
[348485365,1736569841876,-500.0,9.996e-05,2]
[348485367,1736569841886,-500.0,9.996e-05,2]
[348485369,1736569841894,-501.95884162,9.996e-05,2]
[348485371,1736569841903,-500.0,9.996e-05,2]
[348485373,1736569841912,-500.0,9.996e-05,2]
[348485375,1736569841922,-500.0,9.996e-05,2]
[348485377,1736569841932,-500.0,9.996e-05,2]
[348485379,1736569841942,-500.0,9.996e-05,2]
[348485381,1736569841951,-500.0,9.996e-05,2]
[348485383,1736569841960,-500.0,9.996e-05,2]
[348485385,1736569841969,-500.0,9.996e-05,2]
[348485387,1736569841979,-500.0,9.996e-05,2]
[348485389,1736569841988,-503.14031716,9.996e-05,2]
[348485391,1736569841997,-502.08320535,9.996e-05,2]
[348485393,1736569842007,-500.0,9.996e-05,2]
[348485395,1736569842016,-502.31875504,9.996e-05,2]
[348485397,1736569842025,-500.0,9.996e-05,2]
[348485399,1736569842034,-500.0,9.996e-05,2]
[348485401,1736569842044,-514.7363386,9.996e-05,2]
[348485403,1736569842053,-503.80313206,9.996e-05,2]
[348485405,1736569842062,-526.67361133,9.996e-05,2]
[348485407,1736569842071,-500.0,9.996e-05,2]
[348485409,1736569842080,-500.0,9.996e-05,2]
[348485411,1736569842090,-500.83904661,9.996e-05,2]
[348485413,1736569842099,-500.0,9.996e-05,2]
[348485415,1736569842108,-511.87146135,9.996e-05,2]
[348485417,1736569842117,-500.0,9.996e-05,2]
[348485419,1736569842126,-500.0,9.996e-05,2]
[348485421,1736569842136,-500.0,9.996e-05,2]
[348485423,1736569842146,-503.13097757,9.996e-05,2]
[348485424,1736569842155,-500.0,9.996e-05,2]
[348485425,1736569842164,-506.6826236,9.996e-05,2]
[348485426,1736569842174,-500.0,9.996e-05,2]
[348485427,1736569842184,-500.0,9.996e-05,2]
[348485428,1736569842199,-505.12726893,9.996e-05,2]
[348485429,1736569842208,-503.99221387,9.996e-05,2]
[348485430,1736569842218,-500.0,9.996e-05,2]
[348485431,1736569842227,-505.55324297,9.996e-05,2]
[348485432,1736569842237,-500.0,9.996e-05,2]
[348485433,1736569842247,-515.11188463,9.996e-05,2]
[348485434,1736569842256,-500.0,9.996e-05,2]
[348485435,1736569842266,-500.0,9.996e-05,2]
[348485436,1736569842276,-501.12908986,9.996e-05,2]
[348485437,1736569842285,-500.0,9.996e-05,2]
[348485438,1736569842294,-500.0,9.996e-05,2]
[348485439,1736569842304,-500.0,9.996e-05,2]
[348485440,1736569842313,-508.21848895,9.996e-05,2]
[348485441,1736569842323,-507.01479796,9.996e-05,2]
[348485442,1736569842332,-500.0,9.996e-05,2]
[348485443,1736569842342,-500.0,9.996e-05,2]
[348485444,1736569842351,-502.43730354,9.996e-05,2]
[348485445,1736569842360,-502.97643718,9.996e-05,2]
[348485446,1736569842369,-500.0,9.996e-05,2]
[348485447,1736569842378,-500.0,9.996e-05,2]
[348485448,1736569842387,-507.9672831,9.996e-05,2]
[348485449,1736569842397,-500.0,9.996e-05,2]
[348485450,1736569842407,-504.3943129,9.996e-05,2]
[348485451,1736569842417,-294.31181115,9.996e-05,2]
[348485452,1736569842427,-500.0,9.996e-05,2]
[348485453,1736569842437,-502.55264769,9.996e-05,2]
[348485454,1736569842450,-500.0,9.996e-05,2]
[348485455,1736569842459,-500.0,9.996e-05,2]
[348485456,1736569842468,-502.20039557,9.996e-05,2]
[348485457,1736569842478,-500.0,9.996e-05,2]
[348485458,1736569842487,-502.06258216,9.996e-05,2]
[348485459,1736569842497,-500.0,9.996e-05,2]
[348485460,1736569842506,-500.0,9.996e-05,2]
[348485461,1736569842516,-500.0,9.996e-05,2]
[348485462,1736569842525,-500.0,9.996e-05,2]
[348485463,1736569842535,-163.92123337,9.996e-05,2]
[348485464,1736569842544,-500.0,9.996e-05,2]
[348485465,1736569842555,-500.0,9.996e-05,2]
[348485466,1736569842564,-509.43009587,9.996e-05,2]
[348485467,1736569842574,-500.0,9.996e-05,2]
[348485468,1736569842583,-500.0,9.996e-05,2]
[348485469,1736569842593,-500.0,9.996e-05,2]
[348485470,1736569842603,-501.5672057,9.996e-05,2]
[348485471,1736569842613,-500.0,9.996e-05,2]
[348485472,1736569842623,-505.41248619,9.996e-05,2]
[348485473,1736569842632,-656.46,9.996e-05,2]
[348485474,1736569842641,-505.65746854,9.996e-05,2]
[348485475,1736569842651,-500.0,9.996e-05,2]
[348485476,1736569842662,-500.0,9.996e-05,2]
[348485477,1736569842671,-500.0,9.996e-05,2]
[348485478,1736569842681,-500.0,9.996e-05,2]
[348485479,1736569842692,-500.0,9.996e-05,2]
[348485480,1736569842701,-500.0,9.996e-05,2]
[348485481,1736569842712,-500.0,9.996e-05,2]
[348485482,1736569842722,-500.0,9.996e-05,2]
[348485483,1736569842731,-500.0,9.996e-05,2]
[348485484,1736569842741,-500.0,9.996e-05,2]
[348485485,1736569842751,-500.0,9.996e-05,2]
[348485486,1736569842760,-500.0,9.996e-05,2]
[348485487,1736569842769,-500.0,9.996e-05,2]
[348485488,1736569842778,-500.0,9.996e-05,2]
[348485489,1736569842788,-500.0,9.996e-05,2]
[348485490,1736569842799,-500.0,9.996e-05,2]
[348485491,1736569842808,-516.38997811,9.996e-05,2]
[348485492,1736569842818,-500.0,9.996e-05,2]
[348485493,1736569842827,-500.0,9.996e-05,2]
[348485494,1736569842837,-500.0,9.996e-05,2]
[348485495,1736569842846,-493.97815199,9.996e-05,2]
[348485496,1736569842857,-500.0,9.996e-05,2]
[348485497,1736569842866,-500.0,9.996e-05,2]
[348485498,1736569842876,-500.0,9.996e-05,2]
[348485499,1736569842885,-500.0,9.996e-05,2]
[348485500,1736569842895,-500.0,9.996e-05,2]
[348485501,1736569842905,-482.89163939,9.996e-05,2]
[348485502,1736569842929,-17.10836061,9.996e-05,2]
[348485503,1736569842939,-500.0,9.996e-05,2]
[348485504,1736569842949,-500.0,9.996e-05,2]
[348485505,1736569842958,-511.57199986,9.996e-05,2]
[348485506,1736569842967,-500.0,9.996e-05,2]
[348485507,1736569842976,-171.91867339,9.996e-05,2]
[348485508,1736569842988,-333.17832198,9.996e-05,2]
[348485509,1736569842997,-500.0,9.996e-05,2]
[348485510,1736569843007,-20.86648863,9.996e-05,2]
[348485521,1736569843313,-418.59203884,9.995e-05,2]
[348485528,1736569843371,-81.40796116,9.995e-05,2]
[348485530,1736569843381,-347.85856555,9.996e-05,2]
[348485532,1736569843420,-108.41332727,9.996e-05,2]
[348485533,1736569843429,-505.36724697,9.996e-05,2]
[348485534,1736569843439,-500.0,9.996e-05,2]
[348485535,1736569843448,-500.95412318,9.996e-05,2]
[348485536,1736569843459,-500.0,9.996e-05,2]
[348485537,1736569843469,-500.0,9.996e-05,2]
[348485538,1736569843479,-500.0,9.996e-05,2]
[348485539,1736569843490,-500.0,9.996e-05,2]
[348485540,1736569843499,-503.23015179,9.996e-05,2]
[348485541,1736569843508,-504.88920197,9.996e-05,2]
[348485542,1736569843517,-500.0,9.996e-05,2]
[348485543,1736569843527,-500.0,9.996e-05,2]
[348485544,1736569843536,-500.0,9.996e-05,2]
[348485545,1736569843546,-500.0,9.996e-05,2]
[348485546,1736569843555,-504.60072067,9.996e-05,2]
[348485547,1736569843565,-500.0,9.996e-05,2]
[348485548,1736569843574,-186.56657201,9.996e-05,2]
[348485549,1736569843584,-500.0,9.996e-05,2]
[348485550,1736569843593,-500.0,9.996e-05,2]
[348485551,1736569843602,-504.3908126,9.996e-05,2]
[348485552,1736569843612,-500.0,9.996e-05,2]
[348485553,1736569843622,-504.69102708,9.996e-05,2]
[348485554,1736569843631,-526.55548049,9.996e-05,2]
[348485555,1736569843641,-501.89376958,9.996e-05,2]
[348485556,1736569843651,-501.97211297,9.996e-05,2]
[348485557,1736569843660,-506.4095483,9.996e-05,2]
[348485558,1736569843670,-500.0,9.996e-05,2]
[348485559,1736569843679,-500.0,9.996e-05,2]
[348485560,1736569843689,-504.08066935,9.996e-05,2]
[348485561,1736569843698,-500.0,9.996e-05,2]
[348485562,1736569843708,-500.0,9.996e-05,2]
[348485564,1736569843717,-506.16470067,9.996e-05,2]
[348485566,1736569843726,-500.0,9.996e-05,2]
[348485568,1736569843736,-507.12025478,9.996e-05,2]
[348485570,1736569843745,-504.38281211,9.996e-05,2]
[348485572,1736569843755,-501.50887147,9.996e-05,2]